bitfinex/quotes_SOLUSD_20251013
["timestamp","ask_amount","ask_price","bid_price","bid_amount"]
[1760346107936,2.64544389,198.39,198.33,20.18678822]
[1760346108119,0.10552805,198.39,198.34,3.24991584]
[1760346108319,0.10552805,198.39,198.35,0.71]
[1760346108632,0.10552805,198.39,198.36,0.71]
[1760346108939,0.10552805,198.39,198.37,5.04108484]
[1760346110142,0.10552805,198.39,198.37,5.75108484]
[1760346110432,0.10552805,198.39,198.38,0.71]
[1760346110818,0.10552805,198.39,198.38,5.75083072]
[1760346113531,2.64544389,198.39,198.38,5.04083072]
[1760346113734,0.10552805,198.39,198.38,5.04083072]
[1760346114032,0.19745221,198.39,198.38,5.04083072]
[1760346114713,0.09192416,198.39,198.37,5.04108484]
[1760346114934,0.09192416,198.39,198.37,5.75108484]
[1760346116436,2.53991584,198.38,198.37,5.04108484]
[1760346116822,2.53991584,198.38,198.35,5.04159314]
[1760346117340,3.9693414,198.38,198.35,5.75159314]
[1760346117926,3.9693414,198.37,198.35,5.75159314]
[1760346118941,3.9693414,198.37,198.33,18.35690453]
[1760346119243,0.09192416,198.39,198.33,18.35690453]
[1760346119244,3.9693414,198.35,198.33,18.35690453]
[1760346119634,3.9693414,198.35,198.33,5.04210154]
[1760346120239,0.09192416,198.39,198.33,5.04210154]
[1760346120240,3.9693414,198.34,198.33,5.04210154]
[1760346120555,4.6793414,198.34,198.32,0.2]
[1760346120727,4.6793414,198.33,198.32,0.2]
[1760346121847,0.71,198.33,198.32,0.2]
[1760346122140,4.6793414,198.33,198.32,0.2]
[1760346123639,30.52144294,198.33,198.32,0.2]
[1760346123939,57.97251341,198.33,198.26,0.2]
[1760346124142,3.9693414,198.27,198.26,0.2]
[1760346124533,4.6793414,198.27,198.26,0.2]
[1760346129749,4.6793414,198.27,198.18,0.1]
[1760346129750,41.39944398,198.27,198.18,0.1]
[1760346129953,3.9693414,198.19,198.18,0.1]
[1760346131949,4.6793414,198.19,198.18,0.1]
[1760346132744,3.9693414,198.19,198.18,0.1]
[1760346133136,3.9693414,198.19,198.18,5.14591203]
[1760346134135,4.07431236,198.19,198.18,0.1]
[1760346136837,0.10497096,198.19,198.18,5.80591785]
[1760346137532,0.10497096,198.19,198.18,9.77525925]
[1760346137735,0.10497096,198.19,198.18,5.80591785]
[1760346138133,0.10497096,198.19,198.18,5.14591785]
[1760346139251,0.10497096,198.19,198.18,5.80591785]
[1760346139845,0.10497096,198.19,198.18,5.14591785]
[1760346140553,0.10497096,198.19,198.18,5.80591785]
[1760346140761,1e-08,198.19,198.18,20.65173446]
[1760346141650,1e-08,198.19,198.18,5.80591785]
[1760346141856,1e-08,198.19,198.18,9.77525925]
[1760346142758,1e-08,198.2,198.18,9.77525925]
[1760346143053,1e-08,198.22,198.21,20.8]
[1760346143251,1e-08,198.22,198.21,24.7693414]
[1760346143461,1e-08,198.25,198.22,10.87647521]
[1760346143658,0.09698844,198.28,198.26,5.04388177]
[1760346143953,0.09698844,198.28,198.26,9.01322317]
[1760346144160,0.09698844,198.28,198.26,9.67322317]
[1760346145435,0.09698844,198.28,198.26,5.04388177]
[1760346145634,4.07140531,198.27,198.26,5.04388177]
[1760346145834,0.10206391,198.27,198.26,5.04388177]
[1760346146757,0.10206391,198.27,198.24,17.65509765]
[1760346146958,0.10206391,198.27,198.24,18.31509765]
[1760346149037,0.10206391,198.27,198.24,17.65509765]
[1760346149237,0.10206391,198.27,198.25,0.66]
[1760346150543,0.10206391,198.27,198.24,17.65509765]
[1760346150856,9.57188422,198.27,198.23,5.0446451]
[1760346151060,0.69,198.26,198.23,5.0446451]
[1760346151363,9.57188422,198.27,198.23,17.65625787]
[1760346151555,10.26188422,198.27,198.23,17.65625787]
[1760346151854,10.26188422,198.27,198.23,18.31625787]
[1760346152652,9.46982031,198.25,198.21,5.04515412]
[1760346152957,9.46982031,198.22,198.21,5.04515412]
[1760346153258,9.46982031,198.23,198.21,5.04515412]
[1760346153443,10.15982031,198.22,198.21,5.04515412]
[1760346153949,10.15982031,198.22,198.19,5.04566325]
[1760346154154,10.15982031,198.22,198.19,5.70566325]
[1760346154155,0.09640091,198.22,198.19,5.70566325]
[1760346154554,0.09640091,198.22,198.19,5.04566325]
[1760346154759,10.15982031,198.21,198.19,5.04566325]
[1760346154935,0.69,198.2,198.18,0.1]
[1760346155142,10.15982031,198.2,198.18,5.1458688]
[1760346156376,9.46982031,198.19,198.18,0.1]
[1760346156661,10.15982031,198.19,198.18,0.1]
[1760346160869,0.69,198.19,198.18,0.1]
[1760346161056,10.15982031,198.19,198.18,0.1]
[1760346161446,0.09640091,198.22,198.18,0.76]
[1760346161672,0.78640091,198.22,198.18,5.80588357]
[1760346161966,9.46982031,198.2,198.18,5.14588357]
[1760346162359,20.89640091,198.22,198.19,0.66]
[1760346162669,0.09640091,198.22,198.19,10.12982031]
[1760346162853,0.09640091,198.22,198.2,0.66]
[1760346163049,0.09640091,198.22,198.18,17.7606782]
[1760346163242,0.09640091,198.22,198.21,5.70515412]
[1760346163448,0.09640091,198.22,198.21,5.04515412]
[1760346163962,0.09640091,198.22,198.21,5.70515412]
[1760346166254,0.09640091,198.22,198.21,15.17497443]
[1760346166667,0.09640091,198.22,198.21,5.70515412]
[1760346169778,0.09640091,198.22,198.21,5.04515412]
[1760346170754,4.07027991,198.22,198.21,5.04515412]
[1760346170955,0.09640091,198.22,198.21,5.04515412]
[1760346171181,0.09640091,198.22,198.2,5.04540867]
[1760346172078,4.07027991,198.22,198.2,5.04540867]
[1760346172451,4.07027991,198.22,198.19,5.04566325]
[1760346173475,3.973879,198.2,198.18,0.1]
[1760346173680,3.973879,198.2,198.18,5.14579234]
[1760346174085,0.09774795,198.19,198.18,5.14579234]
[1760346174870,4.07162695,198.19,198.18,5.14579234]
[1760346175582,0.09774795,198.19,198.18,5.14579234]
[1760346175782,0.09774795,198.19,198.18,5.86579234]
[1760346176485,0.09774795,198.19,198.18,5.14579234]
[1760346176685,4.07162695,198.19,198.18,5.14579234]
[1760346177271,0.09774795,198.19,198.18,5.14579234]
[1760346178782,0.09774795,198.19,198.18,5.86579234]
[1760346179579,0.09774795,198.19,198.18,8.40994605]
[1760346180870,0.09774795,198.19,198.18,5.86579234]
[1760346181280,0.09774795,198.19,198.18,8.40994605]
[1760346182382,0.09774795,198.19,198.18,5.14579234]
[1760346182694,0.09774795,198.19,198.18,5.86579234]
[1760346183489,0.09774795,198.19,198.18,8.40994605]
[1760346184083,1e-08,198.19,198.18,8.40994605]
[1760346185189,1e-08,198.19,198.18,5.14579234]
[1760346185389,1e-08,198.19,198.18,8.40994605]
[1760346186176,1e-08,198.19,198.18,5.14579234]
[1760346186574,1e-08,198.19,198.18,5.86579234]
[1760346187101,1e-08,198.19,198.18,5.14579234]
[1760346187878,1e-08,198.19,198.18,8.40994605]
[1760346188789,1e-08,198.19,198.18,5.86579234]
[1760346188993,1e-08,198.19,198.18,8.40994605]
[1760346189190,1e-08,198.19,198.18,5.86579234]
[1760346189500,1e-08,198.19,198.18,8.40994605]
[1760346189698,1e-08,198.2,198.18,19.28642126]
[1760346189903,1e-08,198.2,198.19,3.26415371]
[1760346190499,1e-08,198.2,198.19,8.30981696]
[1760346190880,1e-08,198.2,198.19,5.76566325]
[1760346191079,1e-08,198.2,198.19,5.04566325]
[1760346191600,1e-08,198.2,198.19,8.30981696]
[1760346192171,0.10601341,198.22,198.2,10.87647521]
[1760346192480,0.10601341,198.22,198.21,13.42062892]
[1760346192795,0.10601341,198.22,198.21,19.18578304]
[1760346193181,1e-08,198.24,198.22,13.42062892]
[1760346193382,1e-08,198.25,198.24,10.87647521]
[1760346193589,1e-08,198.28,198.25,31.67647521]
[1760346193903,1e-08,198.28,198.27,13.42062892]
[1760346194101,0.66,198.35,198.27,13.42062892]
[1760346194102,1e-08,198.29,198.27,13.42062892]
[1760346194281,1e-08,198.29,198.28,14.14062892]
[1760346194794,1e-08,198.29,198.28,19.18400192]
[1760346195001,1e-08,198.29,198.28,16.63984821]
[1760346195220,1e-08,198.29,198.28,5.043373]
[1760346195591,0.66000001,198.29,198.28,5.043373]
[1760346196090,3.20415372,198.29,198.22,5.0448996]
[1760346196288,2.54415371,198.27,198.22,5.0448996]
[1760346196491,0.66,198.26,198.22,5.0448996]
[1760346196690,0.66,198.26,198.21,23.48903299]
[1760346196888,0.72,198.25,198.21,12.61255778]
[1760346197089,0.72,198.24,198.21,12.61255778]
[1760346197495,2.54415371,198.25,198.21,12.61255778]
[1760346197705,0.72,198.24,198.21,12.61255778]
[1760346197904,1e-08,198.29,198.21,12.61255778]
[1760346198205,2.54415371,198.26,198.21,12.61255778]
[1760346198381,0.72,198.25,198.21,12.61255778]
[1760346198800,21.52000001,198.29,198.22,3.24415371]
[1760346199104,0.72,198.28,198.21,12.61255778]
[1760346199303,2.54415371,198.25,198.21,12.61255778]
[1760346199680,0.72,198.25,198.21,12.61255778]
[1760346199884,0.72,198.25,198.21,13.31255778]
[1760346200408,1e-08,198.29,198.21,13.31255778]
[1760346200409,0.72,198.28,198.22,0.7]
[1760346200796,0.72,198.28,198.23,17.65625787]
[1760346201105,0.72,198.27,198.23,17.65625787]
[1760346201487,2.54415371,198.25,198.2,12.61318902]
[1760346201785,2.54415371,198.25,198.18,20.9]
[1760346201786,3.26415371,198.24,198.21,12.61288532]
[1760346202696,0.72,198.24,198.21,12.61288532]
[1760346203113,3.26415371,198.23,198.19,5.04566325]
[1760346203301,0.72,198.22,198.19,5.04566325]
[1760346204110,3.26415371,198.22,198.19,5.04566325]
[1760346204611,2.54415371,198.21,198.19,5.04566325]
[1760346204987,2.54415371,198.2,198.19,5.04566325]
[1760346205187,3.26415371,198.2,198.18,0.1]
[1760346205385,3.26415371,198.19,198.18,0.1]
[1760346207700,0.72,198.19,198.18,0.1]
[1760346207996,3.26415371,198.19,198.18,0.1]
[1760346208399,2.54415371,198.21,198.18,5.14591785]
[1760346208597,0.72,198.23,198.18,5.14591785]
[1760346208798,2.54415371,198.21,198.18,5.14591785]
[1760346209002,3.26415371,198.21,198.18,5.14591785]
[1760346209293,21.52,198.25,198.18,5.14591785]
[1760346209618,2.54415371,198.21,198.18,5.14591785]
[1760346209811,2.54415371,198.2,198.18,5.14591785]
[1760346210228,2.54415371,198.21,198.18,5.14591785]
[1760346210519,2.54415371,198.22,198.18,18.46071248]
[1760346211215,2.54415371,198.21,198.18,17.76071248]
[1760346211414,3.26415371,198.21,198.18,17.76071248]
[1760346211617,2.54415371,198.2,198.18,17.76071248]
[1760346211917,2.54415371,198.19,198.18,5.14591785]
[1760346213109,2.54415371,198.2,198.18,5.14591785]
[1760346214002,0.10499936,198.19,198.18,5.14591785]
[1760346214717,0.10499936,198.19,198.18,5.84591785]
[1760346215623,0.10499936,198.19,198.18,5.14591785]
[1760346215825,0.10499936,198.19,198.18,5.84591785]
[1760346216122,2.64915307,198.19,198.18,5.14591785]
[1760346216618,3.36915307,198.19,198.18,0.1]
[1760346219913,0.10499936,198.19,198.18,5.84591785]
[1760346220113,1e-08,198.19,198.18,19.26654677]
[1760346220320,0.09866303,198.21,198.19,10.87647521]
[1760346220520,0.11055691,198.22,198.21,10.87647521]
[1760346220712,0.11055691,198.22,198.21,13.42062892]
[1760346220914,0.10603983,198.23,198.21,14.12062892]
[1760346221112,0.10603983,198.23,198.22,14.12062892]
[1760346222329,1e-08,198.23,198.22,19.16552852]
[1760346222916,1e-08,198.24,198.22,19.16552852]
[1760346223118,1e-08,198.24,198.23,3.24415371]
[1760346224718,1e-08,198.24,198.23,8.28879881]
[1760346227246,1e-08,198.24,198.23,16.62112031]
[1760346227614,1e-08,198.24,198.23,5.0446451]
[1760346228846,3.20415372,198.24,198.19,5.04566325]
[1760346229043,2.54415371,198.22,198.19,5.04566325]
[1760346229223,2.54415371,198.23,198.19,5.04566325]
[1760346229424,6.36002504,198.24,198.2,0.71]
[1760346229629,1e-08,198.24,198.21,0.71]
[1760346230516,1e-08,198.24,198.22,5.0448996]
[1760346230722,7.02002503,198.23,198.2,5.04515818]
[1760346230920,6.36002503,198.21,198.2,5.04515818]
[1760346231116,7.02002503,198.21,198.2,5.04515818]
[1760346232159,7.02002503,198.21,198.19,5.04566325]
[1760346233160,6.36002503,198.22,198.19,5.75566325]
[1760346233744,6.36002503,198.23,198.2,0.71]
[1760346234143,0.10237153,198.21,198.2,0.71]
[1760346234449,0.09258529,198.22,198.21,10.87647521]
[1760346234639,0.09258529,198.22,198.21,17.94650024]
[1760346236530,0.09258529,198.22,198.21,16.63162933]
[1760346236731,0.09258529,198.22,198.21,22.99165436]
[1760346237024,0.09213948,198.23,198.21,22.99165436]
[1760346237229,0.09213948,198.23,198.22,17.94650024]
[1760346238054,0.09213948,198.23,198.22,22.99139984]
[1760346239248,0.09213948,198.23,198.22,16.63137481]
[1760346239445,0.09213948,198.23,198.22,15.92137481]
[1760346240354,0.09213948,198.23,198.22,16.63137481]
[1760346240654,0.09213948,198.23,198.22,22.99139984]
[1760346241453,0.09213948,198.23,198.22,16.63137481]
[1760346242054,0.09213948,198.23,198.22,26.10092723]
[1760346242857,0.09213948,198.23,198.22,15.92137481]
[1760346248444,0.75213948,198.23,198.22,5.0448996]
[1760346248858,0.09213948,198.23,198.2,10.87647521]
[1760346250060,0.09213948,198.23,198.21,5.04515412]
[1760346250961,0.09213948,198.23,198.21,85.44515412]
[1760346251157,0.75213948,198.23,198.21,85.44515412]
[1760346251660,0.66,198.22,198.21,85.44515412]
[1760346252062,0.66,198.22,198.21,5.04515412]
[1760346253961,0.09213948,198.23,198.21,5.75515412]
[1760346254168,0.09766503,198.22,198.21,5.04515412]
[1760346254664,0.09766503,198.22,198.21,5.75515412]
[1760346255296,0.09766503,198.22,198.21,20.60601619]
[1760346256258,0.09766503,198.22,198.21,16.63162933]
[1760346256466,0.09766503,198.22,198.21,20.60601619]
[1760346256868,0.09940284,198.23,198.22,20.8]
[1760346257071,0.10447571,198.25,198.24,3.97438686]
[1760346257370,1e-08,198.25,198.24,95.25086207]
[1760346257569,0.09158636,198.28,198.25,31.67647521]
[1760346257866,0.09158636,198.28,198.25,101.88]
[1760346258165,0.09158636,198.28,198.26,10.87647521]
[1760346259371,0.09158636,198.28,198.27,5.04362737]
[1760346259666,0.76158636,198.28,198.27,5.04362737]
[1760346260166,0.09158636,198.28,198.27,9.69801423]
[1760346260773,0.11063122,198.3,198.27,9.69801423]
[1760346260958,0.11063122,198.3,198.28,15.53086207]
[1760346261548,0.11063122,198.3,198.28,5.043373]
[1760346261745,0.76172069,198.29,198.28,5.043373]
[1760346262570,4.73610755,198.29,198.28,5.043373]
[1760346262787,4.73610755,198.29,198.27,5.0435885]
[1760346262948,4.64438686,198.28,198.26,80.4]
[1760346263152,4.64438686,198.27,198.18,81.18]
[1760346263376,3.97438686,198.24,198.19,17.65932659]
[1760346263664,3.97438686,198.22,198.19,5.04566325]
[1760346263848,0.67,198.21,198.19,5.04566325]
[1760346265670,3.97438686,198.22,198.19,5.04566325]
[1760346266257,0.67,198.23,198.19,5.04566325]
[1760346266555,4.64438686,198.23,198.19,5.04566325]
[1760346267670,0.67,198.22,198.19,5.04566325]
[1760346268372,20.8,198.25,198.19,17.65982138]
[1760346268563,3.97438686,198.24,198.19,18.33982138]
[1760346268759,4.64438686,198.24,198.19,98.73982138]
[1760346269075,3.97438686,198.2,198.19,80.4]
[1760346269373,4.64438686,198.2,198.19,80.4]
[1760346269548,4.64438686,198.2,198.18,0.1]
[1760346269753,3.97438686,198.19,198.18,0.1]
[1760346270171,4.64438686,198.19,198.18,0.1]
[1760346272460,9.69005011,198.19,198.18,0.1]
[1760346272662,20.8,198.18,198.12,0.1]
[1760346272865,3.97438686,198.13,198.0,5.73050505]
[1760346273065,3.97438686,198.05,198.0,5.73050505]
[1760346273678,0.67,198.07,198.01,0.68]
[1760346273869,3.97438686,198.05,198.01,5.73023882]
[1760346274069,0.09196547,198.02,198.01,5.05023882]
[1760346274464,0.09196547,198.02,197.99,5.15054264]
[1760346274665,4.06635233,198.02,197.99,5.15054264]
[1760346274882,0.09196547,198.02,198.0,0.68]
[1760346275071,0.09196547,198.02,198.01,0.68]
[1760346275266,0.09196547,198.02,197.99,18.45744298]
[1760346275473,9.58609182,198.02,197.99,17.77744298]
[1760346275673,0.09196547,198.02,198.0,0.68]
[1760346276286,0.09196547,198.02,198.01,11.55647521]
[1760346276585,0.09196547,198.02,198.01,21.05060156]
[1760346277686,1e-08,198.02,198.01,21.05060156]
[1760346278468,1e-08,198.02,198.01,26.10085154]
[1760346278787,1e-08,198.02,198.01,16.60672519]
[1760346278981,1e-08,198.02,198.01,26.10085154]
[1760346280077,1e-08,198.02,198.01,16.60672519]
[1760346280380,1e-08,198.02,198.01,26.10085154]
[1760346280883,1e-08,198.02,198.01,16.60672519]
[1760346283571,1e-08,198.02,198.01,26.10085154]
[1760346283890,0.10634711,198.05,198.01,26.10085154]
[1760346284191,0.10634711,198.05,198.04,20.37060156]
[1760346284390,0.09666302,198.06,198.05,10.87647521]
[1760346284588,0.09666302,198.06,198.05,11.55647521]
[1760346284766,0.09666302,198.06,198.05,26.09983155]
[1760346286190,1e-08,198.06,198.05,26.12983155]
[1760346286694,1e-08,198.07,198.05,26.12983155]
[1760346286893,1e-08,198.08,198.06,21.09060156]
[1760346287091,22.02434271,198.25,198.06,21.09060156]
[1760346287092,10.14412635,198.19,198.1,10.87647521]
[1760346287392,10.14412635,198.19,198.12,10.87647521]
[1760346287692,9.49412635,198.18,198.12,21.09060156]
[1760346287994,9.49412635,198.18,198.09,20.8]
[1760346287995,9.49412635,198.14,198.09,10.87647521]
[1760346288185,0.65,198.13,198.1,17.66784451]
[1760346288784,0.65,198.15,198.1,17.66784451]
[1760346289092,10.14412635,198.14,198.1,17.66784451]
[1760346289286,0.65,198.14,198.1,17.66784451]
[1760346289483,10.14412635,198.16,198.1,18.38784451]
[1760346289687,0.65,198.16,198.11,9.49412635]
[1760346289879,0.65,198.16,198.11,10.21412635]
[1760346290281,0.65,198.16,198.12,17.66606097]
[1760346292177,10.14412635,198.16,198.12,17.66606097]
[1760346293192,9.49412635,198.13,198.11,5.04770077]
[1760346293377,9.49412635,198.14,198.11,5.04770077]
[1760346293577,10.14412635,198.15,198.11,17.6669527]
[1760346294191,0.09852755,198.12,198.11,17.6669527]
[1760346294502,0.09852755,198.12,198.11,38.75755426]
[1760346294792,0.0974981,198.13,198.12,10.87647521]
[1760346295021,0.0974981,198.13,198.12,21.09060156]
[1760346295189,1e-08,198.17,198.16,31.67647521]
[1760346295373,1e-08,198.18,198.17,10.87647521]
[1760346295704,1e-08,198.18,198.17,21.09060156]
[1760346296016,1e-08,198.18,198.17,10.87647521]
[1760346296878,1e-08,198.18,198.17,11.59647521]
[1760346297084,1e-08,198.18,198.17,16.64264768]
[1760346297706,1e-08,198.18,198.17,15.92264768]
[1760346298601,0.09105017,198.2,198.17,33.23350986]
[1760346298789,0.65,198.29,198.2,10.87647521]
[1760346298989,0.65,198.29,198.24,3.97543099]
[1760346299194,0.65,198.29,198.25,3.97543099]
[1760346299400,4.62543099,198.32,198.25,4.69543099]
[1760346300113,4.62543099,198.32,198.26,21.62901718]
[1760346300335,4.62543099,198.32,198.26,17.65358619]
[1760346300494,4.62543099,198.32,198.26,5.04388177]
[1760346300495,3.97543099,198.3,198.26,5.04388177]
[1760346300696,0.65,198.29,198.26,5.04388177]
[1760346300893,20.8,198.32,198.26,5.04388177]
[1760346301201,3.97543099,198.27,198.21,15.92162933]
[1760346301398,6.35895193,198.25,198.21,15.92162933]
[1760346301783,0.65,198.26,198.21,15.92162933]
[1760346301982,6.35895193,198.25,198.21,15.92162933]
[1760346302190,6.35895193,198.25,198.21,23.48936053]
[1760346302697,6.35895193,198.23,198.21,80.4]
[1760346302904,6.35895193,198.24,198.21,80.4]
[1760346303707,7.00895193,198.24,198.21,80.4]
[1760346304279,25.84337966,198.28,198.22,5.0448996]
[1760346304280,6.35895193,198.25,198.22,5.0448996]
[1760346304492,6.35895193,198.27,198.22,98.77714861]
[1760346304998,6.35895193,198.26,198.22,98.77714861]
[1760346305700,6.35895193,198.29,198.23,11.59647521]
[1760346305910,6.35895193,198.31,198.25,17.23542714]
[1760346306080,6.35895193,198.32,198.27,10.87647521]
[1760346306280,6.35895193,198.32,198.28,5.043373]
[1760346306604,6.35895193,198.31,198.28,5.043373]
[1760346307401,6.35895193,198.29,198.28,5.043373]
[1760346307787,6.35895193,198.3,198.28,5.043373]
[1760346308318,6.35895193,198.31,198.28,5.043373]
[1760346308619,6.35895193,198.31,198.29,0.72]
[1760346308915,6.35895193,198.31,198.28,5.043373]
[1760346309717,0.85,198.34,198.28,5.043373]
[1760346309718,6.35895193,198.32,198.29,0.72]
[1760346309931,0.2,198.34,198.28,17.65180551]
[1760346310215,0.2,198.34,198.31,10.87647521]
[1760346310390,0.2,198.34,198.32,5.04235578]
[1760346310590,0.2,198.34,198.33,10.87647521]
[1760346310792,0.2,198.34,198.33,17.95542714]
[1760346311008,0.2,198.34,198.33,11.59647521]
[1760346311317,0.2,198.34,198.32,5.04235578]
[1760346311502,6.55895193,198.34,198.32,5.04235578]
[1760346312114,6.35895193,198.33,198.31,5.04260264]
[1760346312624,6.35895193,198.33,198.3,5.04286434]
[1760346313811,0.2,198.34,198.3,5.04286434]
[1760346313812,6.35895193,198.31,198.3,5.04286434]
[1760346314123,6.45735966,198.31,198.29,15.91959086]
[1760346314519,6.45735966,198.31,198.29,5.04311565]
[1760346314520,6.35895193,198.3,198.29,5.04311565]
[1760346314708,7.00895193,198.3,198.24,10.87647521]
[1760346314909,6.35895193,198.28,198.24,10.87647521]
[1760346315122,6.35895193,198.28,198.24,11.59647521]
[1760346315624,6.35895193,198.28,198.22,10.87647521]
[1760346315806,6.35895193,198.27,198.22,10.87647521]
[1760346316003,6.35895193,198.27,198.23,0.72]
[1760346316522,6.35895193,198.27,198.22,5.0448996]
[1760346316823,6.35895193,198.26,198.22,5.0448996]
[1760346317025,6.35895193,198.26,198.23,10.87647521]
[1760346317329,6.35895193,198.29,198.24,0.72]
[1760346317519,6.35895193,198.29,198.25,0.72]
[1760346317918,6.35895193,198.28,198.25,0.72]
[1760346318427,0.09840773,198.31,198.26,5.76388177]
[1760346318604,6.35895193,198.3,198.26,5.76388177]
[1760346318799,0.09840773,198.31,198.27,10.87647521]
[1760346319019,0.09840773,198.31,198.27,11.59647521]
[1760346319226,0.09840773,198.31,198.28,0.72]
[1760346319426,0.09840773,198.31,198.3,10.87647521]
[1760346319808,7.14735966,198.31,198.27,10.87647521]
[1760346320014,6.35895193,198.29,198.27,10.87647521]
[1760346320213,6.35895193,198.3,198.27,10.87647521]
[1760346320723,6.35895193,198.3,198.28,5.043373]
[1760346320926,7.04895193,198.29,198.25,5.04413619]
[1760346321106,6.35895193,198.27,198.25,5.04413619]
[1760346321723,6.35895193,198.26,198.23,5.0446451]
[1760346321939,6.35895193,198.24,198.23,5.0446451]
[1760346322297,6.35895193,198.25,198.23,5.0446451]
[1760346322724,6.35895193,198.25,198.22,5.0448996]
[1760346322926,6.35895193,198.24,198.22,5.0448996]
[1760346324535,0.09840773,198.31,198.23,0.72]
[1760346324724,0.09840773,198.31,198.24,10.87647521]
[1760346325036,6.35895193,198.29,198.25,0.72]
[1760346325413,0.09840773,198.31,198.26,7.07895193]
[1760346325605,0.09840773,198.31,198.28,10.87647521]
[1760346326010,0.09840773,198.31,198.29,5.76311866]
[1760346327545,0.09840773,198.31,198.3,0.72]
[1760346327712,0.09840773,198.31,198.3,11.59647521]
[1760346329508,0.09840773,198.31,198.3,16.63933955]
[1760346329909,0.09840773,198.31,198.3,15.91933955]
[1760346330312,0.09840773,198.31,198.3,5.04286434]
[1760346330532,6.45735966,198.31,198.29,5.04310269]
[1760346331148,7.14735966,198.31,198.29,5.04310269]
[1760346331315,7.04895193,198.3,198.27,5.04339769]
[1760346331637,6.35895193,198.29,198.25,5.04413619]
[1760346332523,6.35895193,198.29,198.25,18.37447666]
[1760346333334,6.35895193,198.29,198.25,17.65447666]
[1760346333513,6.35895193,198.28,198.25,5.04413619]
[1760346334027,0.10841593,198.26,198.25,15.9206114]
[1760346334714,0.10841593,198.26,198.25,16.6406114]
[1760346334909,7.15736786,198.26,198.22,15.92137481]
[1760346335113,6.46736786,198.26,198.22,5.7648996]
[1760346335827,0.10841593,198.26,198.23,11.59647521]
[1760346336131,0.10841593,198.26,198.24,0.72]
[1760346336322,0.10841593,198.26,198.25,10.87647521]
[1760346336629,0.10841593,198.26,198.25,11.59647521]
[1760346336829,0.10841593,198.26,198.23,0.72]
[1760346337019,0.10841593,198.26,198.24,11.59647521]
[1760346337630,0.10841593,198.26,198.25,5.04413619]
[1760346338130,1e-08,198.26,198.25,219.54413619]
[1760346338334,1e-08,198.28,198.26,10.87647521]
[1760346338517,1e-08,198.29,198.28,31.67647521]
[1760346338717,1e-08,198.33,198.32,10.87647521]
[1760346338917,1e-08,198.33,198.32,17.23542714]
[1760346339125,1e-08,198.33,198.32,17.95542714]
[1760346339636,1e-08,198.33,198.32,22.99778292]
[1760346340137,1e-08,198.35,198.34,10.87647521]
[1760346340361,1e-08,198.35,198.34,17.23542714]
[1760346340534,1e-08,198.35,198.34,17.95542714]
[1760346341728,1e-08,198.35,198.34,22.99727447]
[1760346341919,1e-08,198.35,198.34,43.79727447]
[1760346342434,1e-08,198.35,198.34,22.99727447]
[1760346343947,0.2,198.44,198.38,10.87647521]
[1760346344253,0.2,198.44,198.34,81.50284284]
[1760346344254,0.2,198.44,198.43,17.23542714]
[1760346344624,1e-08,198.44,198.43,17.95542714]
[1760346345648,1e-08,198.44,198.43,22.99498769]
[1760346346536,1e-08,198.44,198.43,16.63603576]
[1760346346841,1e-08,198.44,198.43,22.99498769]
[1760346347642,1e-08,198.44,198.43,16.63603576]
[1760346347843,1e-08,198.44,198.43,22.99498769]
[1760346348640,1e-08,198.44,198.43,15.91603576]
[1760346348945,1e-08,198.44,198.43,22.94498769]
[1760346349327,0.2,198.46,198.43,22.94498769]
[1760346349328,1e-08,198.46,198.45,31.67647521]
[1760346349527,1e-08,198.46,198.45,38.03542714]
[1760346349723,1e-08,198.49,198.48,31.67647521]
[1760346349949,1e-08,198.49,198.48,38.03542714]
[1760346350135,1e-08,198.49,198.48,32.34647521]
[1760346350337,1e-08,198.49,198.48,38.70542714]
[1760346351742,1e-08,198.49,198.48,43.74371815]
[1760346352646,1e-08,198.49,198.48,50.10267008]
[1760346353046,1e-08,198.49,198.48,43.74371815]
[1760346354256,1e-08,198.5,198.49,17.23542714]
[1760346354451,1e-08,198.5,198.49,17.90542714]
[1760346355658,0.29477004,198.52,198.49,17.90542714]
[1760346355860,1e-08,198.52,198.51,43.07295673]
[1760346356365,1e-08,198.52,198.51,43.74295673]
[1760346356736,1e-08,198.52,198.51,36.7140048]
[1760346356938,0.66000001,198.52,198.51,15.9140048]
[1760346360381,1e-08,198.52,198.51,15.9140048]
[1760346360965,0.66000001,198.52,198.51,15.9140048]
[1760346361157,0.66000001,198.52,198.44,17.63696613]
[1760346361158,7.01895194,198.52,198.44,17.63696613]